[Event "*** Titled Tuesday Blitz"]
[Site "Chess.com"]
[Date "2020.05.19"]
[Round "3"]
[White "GadimbayliA"]
[Black "mbojan"]
[Result "0-1"]
[WhiteElo "2836"]
[BlackElo "2617"]
[TimeControl "180+1"]
[EndTime "12:30:11 PDT"]
[Termination "mbojan won by resignation"]

1. e4 {[%clk 0:03:00.9]} 1... c5 {[%clk 0:02:52.9]} 2. Nf3 {[%clk 0:03:00.8]}
2... Nc6 {[%clk 0:02:47.4]} 3. Bb5 {[%clk 0:03:00.4]} 3... g6 {[%clk 0:02:44]}
4. Bxc6 {[%clk 0:03:00.6]} 4... dxc6 {[%clk 0:02:39.6]} 5. d3 {[%clk 0:03:00.7]}
5... Bg7 {[%clk 0:02:35.7]} 6. h3 {[%clk 0:03:00.9]} 6... Nf6 {[%clk 0:02:31.1]}
7. Nc3 {[%clk 0:03:00.7]} 7... Nd7 {[%clk 0:02:29.4]} 8. Be3 {[%clk 0:03:00.9]}
8... e5 {[%clk 0:02:24.8]} 9. Qd2 {[%clk 0:03:00.7]} 9... Qe7 {[%clk 0:02:23]}
10. Bh6 {[%clk 0:02:51.8]} 10... f6 {[%clk 0:02:20.2]} 11. Bxg7 {[%clk
0:02:50.4]} 11... Qxg7 {[%clk 0:02:18.9]} 12. a3 {[%clk 0:02:49.7]} 12... O-O
{[%clk 0:02:17.8]} 13. O-O {[%clk 0:02:46.5]} 13... Rd8 {[%clk 0:02:13.2]} 14.
Qe3 {[%clk 0:02:44.6]} 14... Qe7 {[%clk 0:02:10.3]} 15. Rfb1 {[%clk 0:02:43.2]}
15... Nf8 {[%clk 0:02:08.7]} 16. b4 {[%clk 0:02:42.5]} 16... Ne6 {[%clk
0:02:08.8]} 17. Na4 {[%clk 0:02:15.3]} 17... b6 {[%clk 0:02:04.7]} 18. bxc5
{[%clk 0:01:57.9]} 18... b5 {[%clk 0:02:04.6]} 19. Nc3 {[%clk 0:01:58.4]} 19...
Nd4 {[%clk 0:01:48.4]} 20. Rb2 {[%clk 0:01:27.2]} 20... Qxc5 {[%clk 0:01:25.6]}
21. Ne2 {[%clk 0:01:26.2]} 21... Nxe2+ {[%clk 0:01:17.4]} 22. Qxe2 {[%clk
0:01:26.2]} 22... Be6 {[%clk 0:01:17.4]} 23. Qd2 {[%clk 0:01:15.6]} 23... a5
{[%clk 0:01:15.2]} 24. Rbb1 {[%clk 0:01:08.3]} 24... Kg7 {[%clk 0:01:13.6]} 25.
Nh2 {[%clk 0:01:02.4]} 25... a4 {[%clk 0:01:07]} 26. Kh1 {[%clk 0:01:01.9]}
26... Rd7 {[%clk 0:01:05.4]} 27. Rf1 {[%clk 0:00:57.3]} 27... Rad8 {[%clk
0:01:03.8]} 28. f4 {[%clk 0:00:57.5]} 28... exf4 {[%clk 0:01:02.9]} 29. Qxf4
{[%clk 0:00:58.4]} 29... Rf7 {[%clk 0:00:54.2]} 30. Nf3 {[%clk 0:00:53.3]} 30...
Qd6 {[%clk 0:00:50.9]} 31. Qe3 {[%clk 0:00:49.4]} 31... Qd7 {[%clk 0:00:46]} 32.
e5 {[%clk 0:00:42.9]} 32... f5 {[%clk 0:00:45.7]} 33. Ng5 {[%clk 0:00:42.4]}
33... Re7 {[%clk 0:00:45.8]} 34. Qc5 {[%clk 0:00:36.9]} 34... Rde8 {[%clk
0:00:41.5]} 35. Rae1 {[%clk 0:00:18.2]} 35... Qd5 {[%clk 0:00:34.9]} 36. Qb4
{[%clk 0:00:15.7]} 36... h6 {[%clk 0:00:31]} 37. Nf3 {[%clk 0:00:15.5]} 37...
Qd7 {[%clk 0:00:28.1]} 38. Qh4 {[%clk 0:00:15]} 38... Bd5 {[%clk 0:00:27.4]} 39.
Qf6+ {[%clk 0:00:14.3]} 39... Kh7 {[%clk 0:00:27.7]} 40. d4 {[%clk 0:00:04.3]}
40... Re6 {[%clk 0:00:14.3]} 41. Qh4 {[%clk 0:00:03.1]} 41... Qd8 {[%clk
0:00:14.7]} 42. Qg3 {[%clk 0:00:01.7]} 42... Bxf3 {[%clk 0:00:13.3]} 43. Rxf3
{[%clk 0:00:02.6]} 43... Qxd4 {[%clk 0:00:13.5]} 44. Rd3 {[%clk 0:00:03.5]}
44... Qc4 {[%clk 0:00:11.1]} 45. Rd7+ {[%clk 0:00:03]} 45... R8e7 {[%clk
0:00:11.6]} 46. Rd8 {[%clk 0:00:02.6]} 46... Qc5 {[%clk 0:00:08.8]} 47. Red1
{[%clk 0:00:01.6]} 47... Rxe5 {[%clk 0:00:08.3]} 48. Qf3 {[%clk 0:00:02.1]}
48... Re1+ {[%clk 0:00:07.9]} 49. Rxe1 {[%clk 0:00:02.4]} 49... Rxe1+ {[%clk
0:00:08.8]} 50. Kh2 {[%clk 0:00:03.3]} 50... Qg1+ {[%clk 0:00:09.1]} 51. Kg3
{[%clk 0:00:03.3]} 51... Re3 {[%clk 0:00:09.4]} 52. Rd7+ {[%clk 0:00:03.7]}
52... Kg8 {[%clk 0:00:09.9]} 53. Kf4 {[%clk 0:00:04.2]} 53... Rxf3+ {[%clk
0:00:09.9]} 54. gxf3 {[%clk 0:00:05.1]} 54... Qh2+ {[%clk 0:00:09.8]} 55. Ke3
{[%clk 0:00:05.2]} 55... Qe5+ {[%clk 0:00:10.4]} 56. Kd3 {[%clk 0:00:05.2]}
56... Qc5 {[%clk 0:00:10.8]} 57. f4 {[%clk 0:00:03.4]} 57... Qxa3+ {[%clk
0:00:10.1]} 58. Kd4 {[%clk 0:00:04.3]} 58... Qb4+ {[%clk 0:00:10.4]} 59. Ke5
{[%clk 0:00:04.6]} 59... Qf8 {[%clk 0:00:09.9]} 60. Ra7 {[%clk 0:00:03.9]} 60...
Qb8+ {[%clk 0:00:09.7]} 0-1

[Event "*** Titled Tuesday Blitz"]
[Site "Chess.com"]
[Date "2020.05.19"]
[Round "3"]
[White "grzechu96"]
[Black "Vegan4future"]
[Result "1-0"]
[WhiteElo "2581"]
[BlackElo "2385"]
[TimeControl "180+1"]
[EndTime "12:30:12 PDT"]
[Termination "grzechu96 won by resignation"]

1. e4 {[%clk 0:03:00.9]} 1... e5 {[%clk 0:02:50.4]} 2. Nf3 {[%clk 0:03:01.1]}
2... d6 {[%clk 0:02:50.6]} 3. d4 {[%clk 0:03:00.3]} 3... exd4 {[%clk 0:02:51.5]}
4. Nxd4 {[%clk 0:02:59.6]} 4... Nf6 {[%clk 0:02:52.4]} 5. Nc3 {[%clk 0:02:59.8]}
5... Be7 {[%clk 0:02:53.3]} 6. g3 {[%clk 0:02:59.6]} 6... O-O {[%clk 0:02:54.2]}
7. Bg2 {[%clk 0:03:00.2]} 7... Nc6 {[%clk 0:02:54.7]} 8. Nde2 {[%clk 0:02:59.9]}
8... Be6 {[%clk 0:02:51.4]} 9. O-O {[%clk 0:02:59.6]} 9... a5 {[%clk 0:02:52]}
10. h3 {[%clk 0:02:57.7]} 10... a4 {[%clk 0:02:52.4]} 11. a3 {[%clk 0:02:57.8]}
11... Bc4 {[%clk 0:02:47.2]} 12. Re1 {[%clk 0:02:57.9]} 12... Re8 {[%clk
0:02:40.3]} 13. Nf4 {[%clk 0:02:57.4]} 13... Bf8 {[%clk 0:02:36.9]} 14. Be3
{[%clk 0:02:56.9]} 14... Ra5 {[%clk 0:02:31.1]} 15. Qd2 {[%clk 0:02:54.5]} 15...
Ba6 {[%clk 0:02:17.6]} 16. Nfd5 {[%clk 0:02:35.9]} 16... Nxd5 {[%clk 0:02:15.7]}
17. Nxd5 {[%clk 0:02:34.1]} 17... b6 {[%clk 0:01:48.3]} 18. f4 {[%clk
0:02:27.1]} 18... Ne7 {[%clk 0:01:42.5]} 19. Bd4 {[%clk 0:02:05.9]} 19... Nxd5
{[%clk 0:01:40.3]} 20. exd5 {[%clk 0:02:05.6]} 20... Rxe1+ {[%clk 0:01:39.6]}
21. Rxe1 {[%clk 0:02:06.5]} 21... Bb7 {[%clk 0:01:31.2]} 22. Bc3 {[%clk
0:02:06.2]} 22... Ra8 {[%clk 0:01:29.3]} 23. Qd4 {[%clk 0:02:05.2]} 23... Qd7
{[%clk 0:01:26.8]} 24. Qe4 {[%clk 0:01:48.5]} 24... Ba6 {[%clk 0:01:13.4]} 25.
Kh2 {[%clk 0:01:46.8]} 25... Bb5 {[%clk 0:01:13]} 26. f5 {[%clk 0:00:45.6]}
26... Re8 {[%clk 0:01:09.8]} 27. Qxe8 {[%clk 0:00:45.7]} 27... Qxe8 {[%clk
0:01:10.7]} 28. Rxe8 {[%clk 0:00:46.2]} 28... Bxe8 {[%clk 0:01:11.6]} 29. g4
{[%clk 0:00:46.8]} 29... Be7 {[%clk 0:01:05.8]} 30. Kg3 {[%clk 0:00:47]} 30...
Bg5 {[%clk 0:00:53.3]} 31. Bf1 {[%clk 0:00:32.9]} 31... Be3 {[%clk 0:00:47.7]}
32. Kf3 {[%clk 0:00:31.6]} 32... Bg1 {[%clk 0:00:45]} 33. Ke4 {[%clk 0:00:29.1]}
33... f6 {[%clk 0:00:44.5]} 34. Bd4 {[%clk 0:00:28.3]} 34... Bh2 {[%clk
0:00:41.2]} 35. Ba6 {[%clk 0:00:26.8]} 35... Kf7 {[%clk 0:00:38]} 36. Bb7 {[%clk
0:00:26]} 36... Bb5 {[%clk 0:00:35]} 37. h4 {[%clk 0:00:20.5]} 37... Be2 {[%clk
0:00:25.3]} 38. g5 {[%clk 0:00:19.6]} 38... fxg5 {[%clk 0:00:25]} 39. hxg5
{[%clk 0:00:19.6]} 39... Bb5 {[%clk 0:00:25.5]} 40. Bc8 {[%clk 0:00:17.1]} 40...
h5 {[%clk 0:00:20.3]} 41. Be6+ {[%clk 0:00:15.3]} 41... Kf8 {[%clk 0:00:20.5]}
42. f6 {[%clk 0:00:13.8]} 42... gxf6 {[%clk 0:00:18.4]} 43. Bxf6 {[%clk
0:00:13.9]} 43... Be8 {[%clk 0:00:16.9]} 44. Kf5 {[%clk 0:00:13.3]} 44... Be5
{[%clk 0:00:15.4]} 45. g6 {[%clk 0:00:09.8]} 45... Bxg6+ {[%clk 0:00:08.3]} 46.
Kxg6 {[%clk 0:00:09.9]} 46... Bf4 {[%clk 0:00:08.2]} 47. Bf7 {[%clk 0:00:09]}
47... h4 {[%clk 0:00:05.6]} 48. Bxh4 {[%clk 0:00:07.5]} 48... Bc1 {[%clk
0:00:05.8]} 49. Bf6 {[%clk 0:00:07.4]} 49... Bd2 {[%clk 0:00:05.9]} 50. Be6
{[%clk 0:00:07.2]} 50... b5 {[%clk 0:00:05.9]} 51. Bd7 {[%clk 0:00:07]} 51... b4
{[%clk 0:00:06.1]} 52. Bxa4 {[%clk 0:00:04.9]} 52... bxa3 {[%clk 0:00:06.2]} 53.
bxa3 {[%clk 0:00:05.5]} 53... Bc1 {[%clk 0:00:06.9]} 54. Bb3 {[%clk 0:00:05.2]}
54... Bxa3 {[%clk 0:00:07.3]} 55. Bd8 {[%clk 0:00:05.6]} 55... Bc5 {[%clk
0:00:08.2]} 56. Bxc7 {[%clk 0:00:05.9]} 56... Ke8 {[%clk 0:00:09.1]} 57. Kf6
{[%clk 0:00:06.2]} 57... Kd7 {[%clk 0:00:10]} 58. Ba5 {[%clk 0:00:05.2]} 58...
Bd4+ {[%clk 0:00:10.9]} 59. Kf5 {[%clk 0:00:05.4]} 59... Bb2 {[%clk 0:00:11.8]}
60. Ba4+ {[%clk 0:00:05.6]} 60... Ke7 {[%clk 0:00:12.6]} 61. Bb6 {[%clk
0:00:05.7]} 61... Bc1 {[%clk 0:00:13.4]} 62. Bf2 {[%clk 0:00:06.1]} 62... Bh6
{[%clk 0:00:13.9]} 63. Bh4+ {[%clk 0:00:06.6]} 63... Kf7 {[%clk 0:00:12.7]} 64.
Bd7 {[%clk 0:00:06.4]} 64... Bf8 {[%clk 0:00:13.6]} 65. Be6+ {[%clk 0:00:07]}
65... Kg7 {[%clk 0:00:14.1]} 66. Bf6+ {[%clk 0:00:07.2]} 66... Kh7 {[%clk
0:00:15]} 67. c4 {[%clk 0:00:06.8]} 67... Bh6 {[%clk 0:00:15.9]} 68. Be7 {[%clk
0:00:07]} 68... Be3 {[%clk 0:00:14.9]} 69. Bxd6 {[%clk 0:00:07.4]} 69... Bd4
{[%clk 0:00:15.5]} 70. c5 {[%clk 0:00:07.8]} 70... Kg7 {[%clk 0:00:16.4]} 71. c6
{[%clk 0:00:08.2]} 71... Bb6 {[%clk 0:00:16.9]} 72. c7 {[%clk 0:00:08.1]} 72...
Bxc7 {[%clk 0:00:17.8]} 73. Bxc7 {[%clk 0:00:09]} 73... Kh7 {[%clk 0:00:17.9]}
74. Be5 {[%clk 0:00:09.5]} 74... Kh6 {[%clk 0:00:17.4]} 75. d6 {[%clk
0:00:09.3]} 1-0

[Event "*** Titled Tuesday Blitz"]
[Site "Chess.com"]
[Date "2020.05.19"]
[Round "3"]
[White "lrestevez"]
[Black "SHIVACalypso"]
[Result "0-1"]
[WhiteElo "2031"]
[BlackElo "2297"]
[TimeControl "180+1"]
[EndTime "12:30:13 PDT"]
[Termination "SHIVACalypso won on time"]

1. d4 {[%clk 0:03:00.9]} 1... e6 {[%clk 0:02:59.4]} 2. c4 {[%clk 0:03:00.4]}
2... Nf6 {[%clk 0:02:58.6]} 3. Nc3 {[%clk 0:03:00.1]} 3... Bb4 {[%clk
0:02:56.9]} 4. Qb3 {[%clk 0:02:58.7]} 4... c5 {[%clk 0:02:51.9]} 5. a3 {[%clk
0:02:56.3]} 5... Bxc3+ {[%clk 0:02:49.9]} 6. bxc3 {[%clk 0:02:57.2]} 6... O-O
{[%clk 0:02:45.1]} 7. Nf3 {[%clk 0:02:56.9]} 7... Nc6 {[%clk 0:02:44.1]} 8. e3
{[%clk 0:02:51]} 8... b6 {[%clk 0:02:42.8]} 9. Bd3 {[%clk 0:02:51]} 9... Na5
{[%clk 0:02:36.5]} 10. Qa2 {[%clk 0:02:47.5]} 10... Ba6 {[%clk 0:02:33.5]} 11.
O-O {[%clk 0:02:46.2]} 11... Rc8 {[%clk 0:02:25.6]} 12. Nd2 {[%clk 0:02:42.7]}
12... d5 {[%clk 0:02:24]} 13. Re1 {[%clk 0:02:35.7]} 13... cxd4 {[%clk
0:02:22.4]} 14. cxd4 {[%clk 0:02:31.3]} 14... Bxc4 {[%clk 0:02:15.7]} 15. Nxc4
{[%clk 0:02:30.6]} 15... Nxc4 {[%clk 0:02:16.6]} 16. Bd2 {[%clk 0:02:19.5]}
16... Qd7 {[%clk 0:02:01.3]} 17. Rec1 {[%clk 0:02:18]} 17... Nxd2 {[%clk
0:01:56.3]} 18. Qxd2 {[%clk 0:02:16.5]} 18... Rxc1+ {[%clk 0:01:48.6]} 19. Rxc1
{[%clk 0:02:15.3]} 19... Rc8 {[%clk 0:01:49]} 20. h3 {[%clk 0:01:53.1]} 20... g6
{[%clk 0:01:30.9]} 21. Rc3 {[%clk 0:01:46]} 21... Ne8 {[%clk 0:01:26.3]} 22. Qc2
{[%clk 0:01:45.3]} 22... Rxc3 {[%clk 0:01:22.4]} 23. Qxc3 {[%clk 0:01:46.2]}
23... Qc7 {[%clk 0:01:22.4]} 24. Qb2 {[%clk 0:01:46.1]} 24... Nd6 {[%clk
0:01:21.2]} 25. Qb4 {[%clk 0:01:40.9]} 25... a5 {[%clk 0:01:18.6]} 26. Qb2
{[%clk 0:01:36.9]} 26... Nc4 {[%clk 0:01:18]} 27. Qc1 {[%clk 0:01:32.2]} 27...
b5 {[%clk 0:01:15.9]} 28. g3 {[%clk 0:01:31.5]} 28... b4 {[%clk 0:01:15.3]} 29.
axb4 {[%clk 0:01:31.1]} 29... axb4 {[%clk 0:01:16.2]} 30. Qc2 {[%clk 0:01:28.3]}
30... Qc6 {[%clk 0:01:10.3]} 31. Qb3 {[%clk 0:01:27.2]} 31... Qb5 {[%clk
0:01:02.5]} 32. h4 {[%clk 0:01:26.1]} 32... h5 {[%clk 0:00:33.7]} 33. Qb1 {[%clk
0:01:21.8]} 33... Kg7 {[%clk 0:00:30.9]} 34. Qb3 {[%clk 0:01:20.5]} 34... Qb6
{[%clk 0:00:28.4]} 35. Kh2 {[%clk 0:01:09.8]} 35... Na5 {[%clk 0:00:27.1]} 36.
Qd1 {[%clk 0:01:05.1]} 36... b3 {[%clk 0:00:25.1]} 37. Qf3 {[%clk 0:01:05.7]}
37... b2 {[%clk 0:00:23]} 38. Qf6+ {[%clk 0:01:05.4]} 38... Kg8 {[%clk
0:00:21.8]} 39. g4 {[%clk 0:00:53.9]} 39... hxg4 {[%clk 0:00:11.4]} 40. h5
{[%clk 0:00:53.6]} 40... gxh5 {[%clk 0:00:07]} 41. Qh6 {[%clk 0:00:44.8]} 41...
b1=Q {[%clk 0:00:05]} 42. Qg5+ {[%clk 0:00:40.6]} 42... Kf8 {[%clk 0:00:04.8]}
43. Bxb1 {[%clk 0:00:39.8]} 43... Qxb1 {[%clk 0:00:04.3]} 44. Qd8+ {[%clk
0:00:40.3]} 44... Kg7 {[%clk 0:00:04.6]} 45. Qxa5 {[%clk 0:00:40.8]} 45... Qf5
{[%clk 0:00:04.4]} 46. Qd2 {[%clk 0:00:37.3]} 46... Qf3 {[%clk 0:00:04.7]} 47.
Kg1 {[%clk 0:00:33.2]} 47... h4 {[%clk 0:00:04.7]} 48. Qd3 {[%clk 0:00:19.3]}
48... h3 {[%clk 0:00:04.8]} 49. Qf1 {[%clk 0:00:19.9]} 49... g3 {[%clk 0:00:05]}
50. fxg3 {[%clk 0:00:19.9]} 50... Qxg3+ {[%clk 0:00:05.1]} 51. Kh1 {[%clk
0:00:19.9]} 51... Qxe3 {[%clk 0:00:05.1]} 52. Kh2 {[%clk 0:00:19.1]} 52... Qxd4
{[%clk 0:00:03.6]} 53. Qxh3 {[%clk 0:00:18.9]} 53... Qf6 {[%clk 0:00:03.8]} 54.
Qa3 {[%clk 0:00:17.4]} 54... Qg6 {[%clk 0:00:04.7]} 55. Qa8 {[%clk 0:00:15.5]}
55... Qh6+ {[%clk 0:00:04.8]} 56. Kg2 {[%clk 0:00:15.1]} 56... Qd2+ {[%clk
0:00:04.9]} 57. Kg3 {[%clk 0:00:14.1]} 57... Qe3+ {[%clk 0:00:04.6]} 58. Kh2
{[%clk 0:00:14.1]} 58... d4 {[%clk 0:00:05.1]} 59. Qb8 {[%clk 0:00:11.8]} 59...
d3 {[%clk 0:00:03.8]} 60. Qb2+ {[%clk 0:00:11.4]} 60... e5 {[%clk 0:00:03]} 61.
Qg2+ {[%clk 0:00:12.1]} 61... Kf6 {[%clk 0:00:03.1]} 62. Qc6+ {[%clk 0:00:10.4]}
62... Kf5 {[%clk 0:00:02.6]} 63. Qc8+ {[%clk 0:00:10.2]} 63... Kf4 {[%clk
0:00:02]} 64. Qe8 {[%clk 0:00:08.8]} 64... Qe2+ {[%clk 0:00:02.1]} 65. Kh3
{[%clk 0:00:07.4]} 65... f5 {[%clk 0:00:03]} 66. Qg6 {[%clk 0:00:06.1]} 66...
Ke4 {[%clk 0:00:02.9]} 67. Qg2+ {[%clk 0:00:05.6]} 67... Qf3+ {[%clk 0:00:02.9]}
68. Kh4 {[%clk 0:00:02.6]} 68... Qxg2 {[%clk 0:00:03.1]} 0-1

[Event "*** Titled Tuesday Blitz"]
[Site "Chess.com"]
[Date "2020.05.19"]
[Round "3"]
[White "Mitronych"]
[Black "lucliasco"]
[Result "1/2-1/2"]
[WhiteElo "2428"]
[BlackElo "2655"]
[TimeControl "180+1"]
[EndTime "12:30:15 PDT"]
[Termination "Game drawn - insufficient material"]

1. e4 {[%clk 0:03:00.9]} 1... c5 {[%clk 0:03:00.1]} 2. Nf3 {[%clk 0:03:00.6]}
2... Nc6 {[%clk 0:03:00.2]} 3. d4 {[%clk 0:03:00.4]} 3... cxd4 {[%clk
0:03:00.4]} 4. Nxd4 {[%clk 0:03:01.3]} 4... Qb6 {[%clk 0:03:00.9]} 5. Nb3 {[%clk
0:03:00.1]} 5... Nf6 {[%clk 0:02:59.9]} 6. Nc3 {[%clk 0:02:58.4]} 6... e6 {[%clk
0:03:00.5]} 7. Qe2 {[%clk 0:02:56.8]} 7... Bb4 {[%clk 0:03:01.1]} 8. Bd2 {[%clk
0:02:53.4]} 8... O-O {[%clk 0:03:00.4]} 9. e5 {[%clk 0:02:50.3]} 9... Nd5 {[%clk
0:02:56.2]} 10. Nxd5 {[%clk 0:02:48.7]} 10... Bxd2+ {[%clk 0:02:55.9]} 11. Qxd2
{[%clk 0:02:42.7]} 11... exd5 {[%clk 0:02:56.8]} 12. O-O-O {[%clk 0:02:32.9]}
12... Re8 {[%clk 0:02:48.6]} 13. Qxd5 {[%clk 0:02:32.1]} 13... Rxe5 {[%clk
0:02:44.1]} 14. Qd6 {[%clk 0:02:32.4]} 14... Re6 {[%clk 0:02:41.7]} 15. Qc5
{[%clk 0:02:28.9]} 15... Qc7 {[%clk 0:02:41.8]} 16. g3 {[%clk 0:02:20.7]} 16...
d6 {[%clk 0:02:40]} 17. Qc3 {[%clk 0:02:20.6]} 17... Bd7 {[%clk 0:02:35.3]} 18.
Kb1 {[%clk 0:02:20.3]} 18... Rc8 {[%clk 0:02:33.3]} 19. h4 {[%clk 0:02:11.1]}
19... Ree8 {[%clk 0:02:23.5]} 20. h5 {[%clk 0:02:04.9]} 20... h6 {[%clk
0:02:19.9]} 21. Rh4 {[%clk 0:02:02.1]} 21... Bf5 {[%clk 0:02:19.3]} 22. Rf4
{[%clk 0:01:57]} 22... Re5 {[%clk 0:02:19]} 23. g4 {[%clk 0:01:52.3]} 23... Bh7
{[%clk 0:02:15.7]} 24. Bc4 {[%clk 0:01:34.9]} 24... d5 {[%clk 0:02:12.1]} 25.
Bd3 {[%clk 0:01:32.9]} 25... Bxd3 {[%clk 0:02:08.8]} 26. Qxd3 {[%clk 0:01:32.7]}
26... Rxh5 {[%clk 0:02:07.8]} 27. Rxf7 {[%clk 0:01:24.8]} 27... Qxf7 {[%clk
0:02:01.8]} 28. gxh5 {[%clk 0:01:24]} 28... Qxh5 {[%clk 0:02:02.7]} 29. Rg1
{[%clk 0:01:19.4]} 29... Qf7 {[%clk 0:01:59]} 30. a3 {[%clk 0:01:14.9]} 30...
Rf8 {[%clk 0:01:58.6]} 31. f4 {[%clk 0:01:09.7]} 31... b6 {[%clk 0:01:54.8]} 32.
Nc1 {[%clk 0:01:05.5]} 32... Ne7 {[%clk 0:01:46.7]} 33. Ne2 {[%clk 0:01:02.9]}
33... Nf5 {[%clk 0:01:47.6]} 34. Nc3 {[%clk 0:00:57.9]} 34... d4 {[%clk
0:01:47.5]} 35. Ne4 {[%clk 0:00:55.8]} 35... Kh8 {[%clk 0:01:31.8]} 36. Nd2
{[%clk 0:00:49.9]} 36... Qd5 {[%clk 0:01:06.9]} 37. Nc4 {[%clk 0:00:46.3]} 37...
b5 {[%clk 0:01:05.2]} 38. Ne5 {[%clk 0:00:43.9]} 38... Rf6 {[%clk 0:01:05.8]}
39. a4 {[%clk 0:00:34.9]} 39... bxa4 {[%clk 0:01:03.9]} 40. c4 {[%clk
0:00:29.6]} 40... Qb7 {[%clk 0:01:03.6]} 41. c5 {[%clk 0:00:27.8]} 41... Qb3
{[%clk 0:01:03.8]} 42. Rc1 {[%clk 0:00:24.4]} 42... Qxd3+ {[%clk 0:00:58.8]} 43.
Nxd3 {[%clk 0:00:24.2]} 43... Ne7 {[%clk 0:00:59.7]} 44. Rc4 {[%clk 0:00:18.1]}
44... Nc6 {[%clk 0:00:59.7]} 45. Rxa4 {[%clk 0:00:18.3]} 45... a5 {[%clk
0:00:59.8]} 46. Ne5 {[%clk 0:00:15.4]} 46... g5 {[%clk 0:00:53.8]} 47. Nxc6
{[%clk 0:00:09.6]} 47... Rxc6 {[%clk 0:00:54.7]} 48. fxg5 {[%clk 0:00:10.5]}
48... Rxc5 {[%clk 0:00:50.5]} 49. gxh6 {[%clk 0:00:09.9]} 49... Rd5 {[%clk
0:00:50.9]} 50. Kc2 {[%clk 0:00:10]} 50... Kh7 {[%clk 0:00:48.9]} 51. Kd3 {[%clk
0:00:10.5]} 51... Rb5 {[%clk 0:00:45.8]} 52. Kc2 {[%clk 0:00:08.2]} 52... Rc5+
{[%clk 0:00:42.7]} 53. Kd3 {[%clk 0:00:08.3]} 53... Rb5 {[%clk 0:00:41.5]} 54.
Kc2 {[%clk 0:00:08.6]} 54... Kxh6 {[%clk 0:00:41.1]} 55. Rxd4 {[%clk 0:00:08.2]}
55... Kg6 {[%clk 0:00:41.7]} 56. Rf4 {[%clk 0:00:08.2]} 56... Kg5 {[%clk
0:00:41.5]} 57. Rf8 {[%clk 0:00:08]} 57... Kg6 {[%clk 0:00:41.3]} 58. Kc3 {[%clk
0:00:07.8]} 58... Rc5+ {[%clk 0:00:41.1]} 59. Kb3 {[%clk 0:00:07]} 59... Rb5+
{[%clk 0:00:40.8]} 60. Ka3 {[%clk 0:00:06.9]} 60... Kg7 {[%clk 0:00:41.3]} 61.
Rf1 {[%clk 0:00:05.6]} 61... Rh5 {[%clk 0:00:41.4]} 62. b3 {[%clk 0:00:05.5]}
62... Rb5 {[%clk 0:00:40.8]} 63. Ka4 {[%clk 0:00:05.3]} 63... Rb4+ {[%clk
0:00:41.3]} 64. Ka3 {[%clk 0:00:05.8]} 64... Rb5 {[%clk 0:00:41.2]} 65. Rf4
{[%clk 0:00:06.1]} 65... Kg6 {[%clk 0:00:41]} 66. Ka4 {[%clk 0:00:06.6]} 66...
Re5 {[%clk 0:00:37.4]} 67. Rf8 {[%clk 0:00:06.5]} 67... Kg7 {[%clk 0:00:37.6]}
68. Ra8 {[%clk 0:00:06.6]} 68... Kf7 {[%clk 0:00:36.9]} 69. Rxa5 {[%clk
0:00:06.9]} 69... Re1 {[%clk 0:00:37.6]} 70. Rd5 {[%clk 0:00:05.9]} 70... Ke6
{[%clk 0:00:38]} 71. Rd2 {[%clk 0:00:05.1]} 71... Ra1+ {[%clk 0:00:36.9]} 72.
Kb5 {[%clk 0:00:05.1]} 72... Ra8 {[%clk 0:00:37.3]} 73. b4 {[%clk 0:00:04.6]}
73... Rb8+ {[%clk 0:00:37.9]} 74. Kc4 {[%clk 0:00:05]} 74... Rc8+ {[%clk
0:00:38.2]} 75. Kb3 {[%clk 0:00:05.3]} 75... Rb8 {[%clk 0:00:38.7]} 76. Rd1
{[%clk 0:00:05.5]} 76... Ke7 {[%clk 0:00:36.7]} 77. Rd5 {[%clk 0:00:04.6]} 77...
Ke6 {[%clk 0:00:36.6]} 78. Kc4 {[%clk 0:00:04.6]} 78... Rxb4+ {[%clk 0:00:36.1]}
79. Kxb4 {[%clk 0:00:05.5]} 79... Kxd5 {[%clk 0:00:37]} 1/2-1/2